fUSD/lending_fUSD_20251214
["ID","MTS","AMOUNT","RATE_DAILY","PERIOD"]
[398480686,1765721654145,10000.01,0.000155,2]
[398480687,1765721654168,10000.01,0.000155,2]
[398480688,1765721654192,10000.01,0.000155,2]
[398480689,1765721654215,10000.01,0.000155,2]
[398480690,1765721654238,10000.01,0.000155,2]
[398480691,1765721654261,10000.01,0.000155,2]
[398480692,1765721654285,8223.92,0.000155,2]
[398480693,1765721674875,1607.048091,0.00015521,2]
[398480694,1765721685070,-500.0,0.00015599,2]
[398480695,1765721685102,-500.0,0.00015599,2]
[398480696,1765721685135,-257.09246028,0.00015599,2]
[398480697,1765721685168,-500.0,0.00015599,2]
[398480698,1765721685202,-500.0,0.00015599,2]
[398480699,1765721685239,-500.0,0.00015599,2]
[398480700,1765721685274,-500.0,0.00015599,2]
[398480701,1765721685308,-500.0,0.00015599,2]
[398480702,1765721685343,-500.0,0.00015599,2]
[398480703,1765721685380,-500.0,0.00015599,2]
[398480704,1765721690117,-500.0,0.00015599,2]
[398480705,1765721690153,-500.0,0.00015599,2]
[398480706,1765721690190,-500.0,0.00015599,2]
[398480707,1765721690225,-500.0,0.00015599,2]
[398480708,1765721690262,-500.0,0.00015599,2]
[398480709,1765721690298,-500.0,0.00015599,2]
[398480710,1765721690350,-500.0,0.00015599,2]
[398480711,1765721690388,-500.0,0.00015599,2]
[398480712,1765721690425,-500.0,0.00015599,2]
[398480713,1765721690467,-500.0,0.00015599,2]
[398480714,1765721710285,1310.036072,7.945e-05,2]
[398480727,1765721777909,-300.0,0.00015597,2]
[398480728,1765721777938,-300.0,0.00015598,2]
[398480729,1765721777978,-650.0,0.00015598,2]
[398480739,1765721822371,2500.0,0.000155,2]
[398480748,1765721840995,1044.3915982,0.000155,2]
[398480749,1765721841216,-190.18392353,0.00015591,2]
[398480750,1765721846990,5811.35095908,0.000155,2]
[398480751,1765721858821,199.99397885,0.00015498,2]
[398480752,1765721864243,199.99397885,0.000155,2]
[398480753,1765721876744,1000.0,0.00013699,2]
[398480767,1765721903150,1744.27948502,0.0001551,2]
[398480768,1765721903175,10000.01,0.0001551,2]
[398480769,1765721903199,10000.01,0.0001551,2]
[398480770,1765721903240,21640.952365,0.0001551,2]
[398480772,1765721904778,-195.0,0.0001551,2]
[398480777,1765721908906,-604.78089066,0.000155,2]
[398480778,1765721909477,-153.79106982,0.0001551,2]
[398480781,1765721912154,-312.62893018,0.0001551,2]
[398480782,1765721915594,-4013.15259606,0.0001551,2]
[398480783,1765721915645,-10000.01,0.0001551,2]
[398480784,1765721915783,-10000.01,0.0001551,2]
[398480785,1765721916237,-10000.01,0.0001551,2]
[398480786,1765721916800,-10000.01,0.0001551,2]
[398480787,1765721916822,-10000.01,0.0001551,2]
[398480788,1765721916841,-10000.01,0.0001551,2]
[398480789,1765721917358,-350.01126008,0.0001551,2]
[398480790,1765721918559,-10000.01,0.0001551,2]
[398480791,1765721921115,-224.13238124,0.0001551,2]
[398480792,1765721924755,-307.21926674,0.0001551,2]
[398480793,1765721926211,-312.82835902,0.0001551,2]
[398480794,1765721927618,-184.25700784,0.0001551,2]
[398480795,1765721934047,-278.19191873,0.0001551,2]
[398480796,1765721937410,-10000.01,0.0001551,2]
[398480797,1765721937636,-10000.01,0.0001551,2]
[398480798,1765721937762,-10000.01,0.0001551,2]
[398480799,1765721937912,-3775.93362042,0.0001551,2]
[398480812,1765721945813,358.14081072,0.00015509,2]
[398480816,1765721947618,2090.00194844,7.945e-05,2]
[398480817,1765721947643,5269.60285356,7.945e-05,2]
[398480819,1765721951089,500.0,0.00015509,2]
[398480820,1765721952898,500.0,0.00015509,2]
[398480827,1765721965540,6635.541423,0.00015512,2]
[398480830,1765721995777,2864.468577,0.000155,2]
[398480831,1765721995803,844.36101574,0.000155,2]
[398480832,1765721997623,2500.0,0.000155,2]
[398480833,1765722005278,1852.42,0.00015422,2]
[398480834,1765722045584,4803.22898426,0.0001531,2]
[398480835,1765722045609,1583.13101574,0.0001531,2]
[398480863,1765722142565,-202.62294726,0.000155,2]
[398480864,1765722144709,-188.01939578,0.000155,2]
[398480865,1765722148397,-417.41371312,0.000155,2]
[398480866,1765722149869,-166.05136259,0.000155,2]
[398480867,1765722149890,-26.16137791,0.000155,2]
[398480868,1765722152053,-213.90862584,0.000155,2]
[398480869,1765722155972,-558.52602517,0.000155,2]
[398480870,1765722159050,-216.55474762,0.000155,2]
[398480871,1765722161594,-395.11075072,0.000155,2]
[398480872,1765722163818,-230.39840762,0.000155,2]
[398480873,1765722168031,-275.95426886,0.000155,2]
[398480874,1765722173714,-314.8828819,0.000155,2]
[398480875,1765722175328,-188.79555562,0.000155,2]
[398480876,1765722177069,-257.91778498,0.000155,2]
[398480877,1765722179982,-347.01118975,0.000155,2]
[398480878,1765722182794,-602.93647271,0.00015499,2]
[398480879,1765722184858,-275.2830713,0.00015499,2]
[398480880,1765722188542,-207.4,0.00015499,2]
[398480882,1765722192417,-114.38045599,0.00015499,2]
[398480883,1765722192440,-123.47999415,0.000155,2]
[398480884,1765722195929,-248.71531821,0.000155,2]
[398480885,1765722197421,-195.0,0.000155,2]
[398480886,1765722199585,-190.70758739,0.000155,2]
[398480888,1765722204466,-817.2076677,0.000155,2]
[398480892,1765722205540,-173.3140724,0.000155,2]
[398480896,1765722208168,-195.0,0.000155,2]
[398480897,1765722211810,-300.0,0.000155,2]
[398480898,1765722217893,-216.56970674,0.000155,2]
[398480899,1765722230040,-233.40484118,0.00015422,2]
[398480900,1765722233418,-169.809,0.00015422,2]
[398480901,1765722235828,-226.21266891,0.00015422,2]
[398480902,1765722237392,-215.94235742,0.00015422,2]
[398480903,1765722239359,-236.46764258,0.00015422,2]
[398480904,1765722243758,-477.85884708,0.00015422,2]
[398480905,1765722248331,-156.9911101,0.00015422,2]
[398480906,1765722251802,-239.42957582,0.00015422,2]
[398480907,1765722254816,-271.63970082,0.00015422,2]
[398480908,1765722257533,-161.36788017,0.00015422,2]
[398480909,1765722259686,-419.75548614,0.00015422,2]
[398480910,1765722263349,-373.09480376,0.00015422,2]
[398480911,1765722268165,-162.49313509,0.00015422,2]
[398480912,1765722269838,-242.90350598,0.00015422,2]
[398480913,1765722272666,-154.87400577,0.00015422,2]
[398480914,1765722275820,-200.42484518,0.00015422,2]
[398480915,1765722275846,-132.66243746,0.00015461,2]
[398480918,1765722279962,-117.33756254,0.00015461,2]
[398480919,1765722279984,-36.70789661,0.000155,2]
[398480923,1765722281087,-195.0,0.000155,2]
[398480927,1765722284208,-213.56619461,0.000155,2]
[398480928,1765722288698,-215.54766289,0.000155,2]
[398480929,1765722301827,-211.67916697,0.00015499,2]
[398480930,1765722304574,-88.32083303,0.00015499,2]
[398480931,1765722304597,-233.33855352,0.00015499,2]
[398480932,1765722306202,-66.66144648,0.00015499,2]
[398480933,1765722306227,-85.11784778,0.00015499,2]
[398480937,1765722308750,-156.70103824,0.00015499,2]
[398480938,1765722310784,-184.6945298,0.00015499,2]
[398480939,1765722312826,-478.8388501,0.00015499,2]
[398480940,1765722316670,2105.305288,0.00015422,2]
[398480941,1765722316709,-227.39792624,0.00015499,2]
[398480943,1765722318903,-67.24980784,0.00015499,2]
[398480944,1765722318926,-127.75019216,0.000155,2]
[398480946,1765722320435,-172.24980784,0.000155,2]
[398480947,1765722320459,-174.59298338,0.000155,2]
[398480948,1765722322238,-191.5009891,0.000155,2]
[398480949,1765722324125,-166.66,0.000155,2]
[398480950,1765722325580,-210.45714263,0.000155,2]
[398480951,1765722329322,-217.31493452,0.000155,2]
[398480952,1765722330471,-195.05741562,0.000155,2]
[398480954,1765722341744,-290.98491756,0.000155,2]
[398480955,1765722343382,-195.0,0.000155,2]
[398480956,1765722345512,-224.72972198,0.000155,2]
[398480965,1765722358934,-244.65343431,0.000155,2]
[398480966,1765722360423,-228.36029918,0.000155,2]
[398480968,1765722361938,-210.25111406,0.000155,2]
[398480975,1765722367341,-300.0,0.000155,2]
[398480976,1765722368453,-300.0,0.000155,2]
[398480977,1765722373025,-166.66,0.000155,2]
[398480979,1765722382888,-283.92142715,0.000155,2]
[398480980,1765722384975,-247.46418068,0.000155,2]
[398480981,1765722387772,2039.00644164,0.00015,2]
[398480982,1765722392875,-304.38416715,0.000155,2]
[398480983,1765722392929,150.0,0.00015325,2]
[398480984,1765722396428,-150.0,0.00015462,2]
[398480985,1765722396451,-160.450772,0.000155,2]
[398480988,1765722399051,-253.62,0.000155,2]
[398480989,1765722401196,-290.59084037,0.000155,2]
[398480990,1765722401763,166.66,0.0001436,2]
[398480991,1765722404205,166.66,0.00014662,2]
[398480992,1765722404274,166.66,0.00014965,2]
[398480993,1765722404326,166.66,0.00015267,2]
[398480994,1765722405001,-446.27815344,0.000155,2]
[398480995,1765722408698,446.0,0.000143,5]
[398480997,1765722426204,2138.75449344,0.00015,2]
[398481001,1765722428487,-236.39318782,0.00015499,2]
[398481002,1765722430028,-63.60681218,0.00015499,2]
[398481003,1765722430051,-300.0,0.00015499,2]
[398481004,1765722430075,-155.77900771,0.00015499,2]
[398481005,1765722431555,-296.68233263,0.00015499,2]
[398481010,1765722433563,-244.25650455,0.00015499,2]
[398481014,1765722436049,258.84071174,0.000101,2]
[398481015,1765722436465,-211.52465642,0.00015499,2]
[398481016,1765722437969,-196.44852365,0.00015499,2]
[398481018,1765722441148,-176.33941576,0.00015499,2]
[398481020,1765722448353,1000.0,0.00014914,2]
[398481021,1765722458551,-250.0,0.00015475,2]
[398481022,1765722460095,-203.05923496,0.00015475,2]
[398481023,1765722461545,-198.16906811,0.00015475,2]
[398481024,1765722465529,-439.3568234,0.00015475,2]
[398481025,1765722467162,-393.31848495,0.00015475,2]
[398481026,1765722469217,-275.44142224,0.00015475,2]
[398481027,1765722471116,5000.0,0.00015,2]
[398481028,1765722471792,-181.54083601,0.00015475,2]
[398481029,1765722474493,-235.45004143,0.00015475,2]
[398481030,1765722475261,307.35600003,0.00014499,2]
[398481033,1765722477920,-470.74315578,0.00015475,2]
[398481034,1765722481882,-379.91887995,0.00015474,2]
[398481040,1765722484147,-223.05032649,0.00015474,2]
[398481042,1765722486805,-194.44886025,0.00015474,2]
[398481043,1765722490747,-195.0,0.00015474,2]
[398481044,1765722490796,306.20044905,0.000125,2]
[398481045,1765722492791,-207.58193331,0.00015474,2]
[398481046,1765722492817,-73.28809219,0.00015475,2]
[398481047,1765722495010,-205.66655264,0.00015475,2]
[398481048,1765722496648,-284.0,0.00015475,2]
[398481049,1765722497130,150.0,0.00015325,2]
[398481050,1765722497315,1536.23508352,0.0001,2]
[398481051,1765722497757,150.0,0.00015325,2]
[398481053,1765722498633,-150.0,0.00015462,2]
[398481054,1765722498661,-126.13441422,0.00015475,2]
[398481055,1765722498695,150.0,0.00015325,2]
[398481056,1765722499621,150.0,0.00015325,2]
[398481058,1765722502645,13650.62827539,0.00015,2]
[398481059,1765722503191,150.0,0.00015325,2]
[398481060,1765722503260,150.0,0.00015325,2]
[398481061,1765722503526,-150.0,0.00015462,2]
[398481062,1765722503553,-90.92022172,0.00015475,2]
[398481063,1765722504108,150.0,0.00015325,2]
[398481064,1765722505548,-150.0,0.00015462,2]
[398481065,1765722505576,-45.0,0.00015475,2]
[398481066,1765722505843,150.0,0.00015325,2]
[398481068,1765722508519,-150.0,0.00015462,2]
[398481069,1765722508543,-37.38327451,0.00015472,2]
[398481073,1765722510025,-113.61672549,0.00015472,2]
[398481074,1765722510047,-151.0,0.00015472,2]
[398481076,1765722510077,-35.38327451,0.00015475,2]
[398481081,1765722511457,267.18213217,0.000107,2]
[398481082,1765722511969,-281.0,0.00015475,2]
[398481084,1765722516453,-445.50539161,0.00015474,2]
[398481085,1765722517579,-54.49460839,0.00015474,2]
[398481086,1765722517607,-134.91638298,0.00015474,2]
[398481087,1765722518687,20126.6130617,0.0001,2]
[398481088,1765722518729,9184.55459278,0.00015,2]
[398481089,1765722519183,-94.15095375,0.00015474,2]
[398481090,1765722519206,-284.59412727,0.00015474,2]
[398481091,1765722521303,-62.96182637,0.00015474,2]
[398481092,1765722521326,-188.36097162,0.00015474,2]
[398481093,1765722524085,-168.97012239,0.00015474,2]
[398481094,1765722527321,-142.66890599,0.00015474,2]
[398481095,1765722527342,-27.76370077,0.00015474,2]
[398481096,1765722529008,-537.43271547,0.00015474,2]
[398481097,1765722529036,-81.83567585,0.00015474,2]
[398481099,1765722530485,-210.22676936,0.00015474,2]
[398481100,1765722533533,-203.01961158,0.00015474,2]
[398481102,1765722536885,-4.91794321,0.00015474,2]
[398481103,1765722537391,-295.73587307,0.00015474,2]
[398481104,1765722540635,-204.26412693,0.00015474,2]
[398481105,1765722540665,-15.18291927,0.00015474,2]
[398481106,1765722543308,-168.86440661,0.00015474,2]
[398481109,1765722545493,-203.57931408,0.00015474,2]
[398481110,1765722548982,-112.37336004,0.00015474,2]
[398481111,1765722549010,-158.04732588,0.00015474,2]
[398481112,1765722552555,-158.38357032,0.00015474,2]
[398481113,1765722556410,-183.5691038,0.00015474,2]
[398481114,1765722556442,-58.81446652,0.00015474,2]
[398481115,1765722557747,1697.08082863,0.000154,2]
[398481116,1765722558544,-336.61642968,0.00015474,2]
[398481118,1765722566785,438.2,0.00015,7]
[398481119,1765722569940,-104.5691038,0.00015474,2]
[398481120,1765722569969,-190.82367675,0.00015474,2]
[398481121,1765722573630,-154.60721945,0.00015474,2]
[398481122,1765722575749,-112.34685551,0.00015474,2]
[398481123,1765722575775,-82.65314449,0.00015474,2]
[398481132,1765722594367,1942.69,0.00014905,2]
[398481133,1765722594780,188.96451145,0.00015373,2]
[398481157,1765722631863,-1915.55,0.00015465,2]
[398481159,1765722631873,-1915.55,0.00015465,2]
[398481160,1765722631882,-300.0,0.00015473,2]
[398481162,1765722631891,-300.0,0.00015473,2]
[398481163,1765722631901,-904.04297528,0.00015473,2]
[398481164,1765722631913,-295.95702472,0.00015473,2]
[398481165,1765722631923,-300.0,0.00015473,2]
[398481166,1765722631932,-294.06889975,0.00015473,2]
[398481167,1765722631943,-5.93110025,0.00015473,2]
[398481168,1765722631952,-395.59084037,0.00015473,2]
[398481169,1765722631961,-75.98424132,0.00015473,2]
[398481170,1765722631978,-119.01575868,0.00015473,2]
[398481171,1765722631988,-417.34685551,0.00015474,2]
[398481172,1765722631997,-32.95326002,0.00015474,2]
[398481173,1765722632008,-467.04673998,0.00015474,2]
[398481174,1765722632019,-500.0,0.00015474,2]
[398481175,1765722632028,-133.70754252,0.00015474,2]
[398481176,1765722632047,-366.29245748,0.00015474,2]
[398481177,1765722632057,-481.68577799,0.00015474,2]
[398481178,1765722632068,-18.31422201,0.00015474,2]
[398481179,1765722632077,-500.0,0.00015474,2]
[398481180,1765722632087,-500.0,0.00015474,2]
[398481181,1765722632096,-13.97292768,0.00015474,2]
[398481182,1765722632107,-486.02707232,0.00015474,2]
[398481183,1765722632116,-500.0,0.00015474,2]
[398481184,1765722632125,-500.0,0.00015474,2]
[398481185,1765722632135,-500.0,0.00015474,2]
[398481186,1765722632145,-500.0,0.00015474,2]
[398481187,1765722632154,-417.55236923,0.00015474,2]
[398481188,1765722632163,-500.0,0.00015474,2]
[398481189,1765722632172,-120.53551911,0.00015474,2]
[398481190,1765722632183,-379.46448089,0.00015474,2]
[398481191,1765722632192,-67.59051911,0.00015474,2]
[398481192,1765722632203,-408.2574532,0.00015474,2]
[398481193,1765722632214,-24.15202769,0.00015474,2]
[398481194,1765722632224,-299.17722681,0.00015474,2]
[398481195,1765722632239,-200.82277319,0.00015474,2]
[398481196,1765722632248,-406.74220714,0.00015474,2]
[398481197,1765722632259,-93.25779286,0.00015474,2]
[398481198,1765722632268,-500.0,0.00015474,2]
[398481199,1765722632279,-64.59882676,0.00015474,2]
[398481200,1765722632290,-435.40117324,0.00015474,2]
[398481201,1765722632300,-281.12151012,0.00015474,2]
[398481202,1765722632315,-218.87848988,0.00015474,2]
[398481203,1765722632325,-109.45053262,0.00015474,2]
[398481212,1765722634852,-151.0,0.00015472,2]
[398481213,1765722634890,-390.54946738,0.00015474,2]
[398481214,1765722634927,-500.0,0.00015474,2]
[398481215,1765722634963,-500.0,0.00015474,2]
[398481216,1765722635003,-500.0,0.00015474,2]
[398481217,1765722635040,-500.0,0.00015474,2]
[398481218,1765722635075,-500.0,0.00015474,2]
[398481219,1765722635111,-500.0,0.00015474,2]
[398481220,1765722635147,-500.0,0.00015474,2]
[398481221,1765722635181,-500.0,0.00015474,2]
[398481222,1765722635217,-416.91106524,0.00015474,2]
[398481224,1765722636260,5230.21586319,0.00015399,2]
[398481228,1765722640107,-83.08893476,0.00015474,2]
[398481229,1765722640149,-500.0,0.00015474,2]
[398481230,1765722640188,-500.0,0.00015474,2]
[398481231,1765722640226,-500.0,0.00015474,2]
[398481232,1765722640264,-500.0,0.00015474,2]
[398481233,1765722640302,-500.0,0.00015474,2]
[398481234,1765722640340,-500.0,0.00015474,2]
[398481235,1765722640378,-600.0,0.00015474,2]
[398481236,1765722640416,-500.0,0.00015474,2]
[398481237,1765722640448,-226.21266891,0.00015474,2]
[398481238,1765722640484,-279.0,0.00015474,2]
[398481239,1765722640509,-756211.52837784,0.00015475,2]
[398481240,1765722640519,-2056.91619271,0.00015499,2]
[398481241,1765722640528,-41306.37209018,0.000155,2]
[398481242,1765722640537,-1000.0,0.000155,2]
[398481243,1765722640547,-2500.0,0.000155,2]
[398481244,1765722640556,-195.0,0.00015536,2]
[398481245,1765722640565,-166.66,0.00015569,2]
[398481246,1765722640574,-200.0,0.00015591,2]
[398481247,1765722640584,-500.0,0.00015591,2]
[398481248,1765722640593,-500.0,0.00015591,2]
[398481249,1765722640602,-500.0,0.00015591,2]
[398481251,1765722640611,-500.0,0.00015591,2]
[398481253,1765722640621,-500.0,0.00015591,2]
[398481254,1765722640630,-500.0,0.00015591,2]
[398481255,1765722640639,-309.81607647,0.00015591,2]
[398481256,1765722640648,-369.50383265,0.00015591,2]
[398481257,1765722640657,-500.0,0.00015591,2]
[398481258,1765722640668,-50000.0,0.00015598,2]
[398481259,1765722640678,-240.3711,0.00015599,2]
[398481260,1765722640688,-200.0,0.00015599,2]
[398481261,1765722640700,-150.0,0.00015599,2]
[398481262,1765722640710,-200.0,0.00015599,2]
[398481263,1765722640719,-200.0,0.00015599,2]
[398481264,1765722640728,-50000.0,0.00015599,2]
[398481265,1765722640738,-500.0,0.00015599,2]
[398481266,1765722640748,-500.0,0.00015599,2]
[398481267,1765722640757,-161.8073,0.000156,2]
[398481269,1765722640768,-7400.4004,0.000156,2]
[398481271,1765722640777,-43749.3621236,0.000156,2]
[398481273,1765722640787,-1697.08082863,0.00015667,2]
[398481274,1765722640795,-3337.9466334,0.00015766,2]
[398481275,1765722640804,-500.0,0.00015799,2]
[398481276,1765722640813,-579.99190904,0.00015799,2]
[398481277,1765722640823,-500.0,0.00015799,2]
[398481278,1765722640831,-154.06647958,0.00015799,2]
[398481279,1765722640840,-53548.68164832,0.00015825,2]
[398481280,1765722640850,-299.9620005,0.00015865,2]
[398481281,1765722640859,-166.66,0.00015871,2]
[398481282,1765722640868,-388.12259626,0.000159,2]
[398481283,1765722640878,-388.12259621,0.000159,2]
[398481284,1765722640886,-388.12259621,0.000159,2]
[398481285,1765722640896,-388.12259621,0.000159,2]
[398481286,1765722640905,-388.12259621,0.000159,2]
[398481287,1765722640916,-388.12259621,0.000159,2]
[398481288,1765722640925,-1697.08082863,0.00015933,2]
[398481289,1765722640934,-909.77556024,0.0001599,2]
[398481290,1765722640943,-47151.3448699,0.00016,2]
[398481291,1765722640953,-680744.96083104,0.00016,4]
[398481292,1765722640965,-123537.05221015,0.00016,4]
[398481293,1765722640976,-7389.36454677,0.00016,4]
[398481294,1765722640988,-5381.06928883,0.00016,4]
[398481295,1765722640999,-2576.0915,0.00016,4]
[398481296,1765722641159,-2540.5043997,0.00016,4]
[398481297,1765722641172,-413.22446657,0.00016,4]
[398481298,1765722641238,-5536.33249366,0.00016,4]
[398481299,1765722641249,-23872.8047668,0.00016,4]
[398481300,1765722641260,-506.37642362,0.00016,4]
[398481301,1765722641296,-10427.71071803,0.00016,4]
[398481306,1765722643634,-1.7e-07,0.00016,4]
[398481307,1765722643742,-2490.84464804,0.00016,4]
[398481308,1765722644086,-598.2597386,0.00015677,2]
[398481309,1765722644114,-4122.76392,0.00015677,2]
[398481312,1765722645906,-509.19220453,0.00015677,2]
[398481313,1765722645916,-5230.21586313,0.00015955,2]
[398481314,1765722645927,-577308.08071226,0.00016,4]
[398481315,1765722645937,-200.0,0.00016,2]
[398481316,1765722645947,-268.154248,0.00016,2]
[398481317,1765722645958,-3337.9466334,0.00016033,2]
[398481318,1765722645968,-150.0,0.000162,2]
[398481319,1765722645978,-150.0,0.000162,2]
[398481320,1765722645988,-150.0,0.000162,2]
[398481321,1765722645998,-150.0,0.000162,2]
[398481322,1765722646008,-150.0,0.000162,2]
[398481323,1765722646018,-150.0,0.000162,2]
[398481324,1765722646028,-150.0,0.000162,2]
[398481325,1765722646038,-153.06730128,0.000162,2]
[398481326,1765722646048,-150.0,0.000162,2]
[398481327,1765722646058,-5000.00605803,0.000162,5]
[398481328,1765722646069,-211.11056597,0.00016232,2]
[398481329,1765722646079,-500.0,0.00016293,2]
[398481330,1765722646089,-3337.9466334,0.00016299,2]
[398481331,1765722646098,-3465.81,0.00016305,2]
[398481332,1765722646108,-2266.64326591,0.0001631,2]
[398481333,1765722646118,-597.65,0.00016369,2]
[398481334,1765722646128,-4845.192,0.00016411,2]
[398481335,1765722646137,-150.0,0.00016425,2]
[398481336,1765722646147,-535.47452051,0.0001643,2]
[398481337,1765722646156,-716.13,0.00016438,2]
[398481338,1765722646166,-500.0,0.00016438,2]
[398481339,1765722646175,-500.0,0.00016438,2]
[398481340,1765722646185,-500.0,0.00016438,2]
[398481341,1765722646195,-500.0,0.00016438,2]
[398481343,1765722646204,-500.0,0.00016438,2]
[398481345,1765722646215,-500.0,0.00016438,2]
[398481348,1765722646225,-500.0,0.00016438,2]
[398481350,1765722646235,-500.0,0.00016438,2]
[398481352,1765722646245,-500.0,0.00016438,2]
[398481354,1765722646255,-500.0,0.00016438,2]
[398481356,1765722646264,-500.0,0.00016438,2]
[398481358,1765722646274,-500.0,0.00016438,2]
[398481360,1765722646284,-500.0,0.00016438,2]
[398481362,1765722646293,-500.0,0.00016438,2]
[398481364,1765722646305,-470.63280296,0.00016438,2]
[398481366,1765722646315,-500.0,0.00016438,2]
[398481368,1765722646324,-500.0,0.00016438,2]
[398481371,1765722646334,-500.0,0.00016438,2]
[398481373,1765722646343,-500.0,0.00016438,2]
[398481375,1765722646352,-500.0,0.00016438,2]
[398481377,1765722646362,-500.0,0.00016438,2]
[398481379,1765722646372,-500.0,0.00016438,2]
[398481381,1765722646385,-500.0,0.00016438,2]
[398481383,1765722646394,-600.0,0.00016438,2]
[398481385,1765722646404,-553.22,0.00016438,2]
[398481387,1765722646414,-553.22,0.00016438,2]
[398481389,1765722646423,-553.22,0.00016438,2]
[398481391,1765722646432,-553.22,0.00016438,2]
[398481394,1765722646442,-553.22,0.00016438,2]
[398481396,1765722646451,-553.22,0.00016438,2]
[398481398,1765722646461,-2561.64128628,0.00016452,2]
[398481399,1765722646470,-150.0,0.000165,2]
[398481402,1765722646480,-209.06,0.00016538,2]
[398481404,1765722646489,-1762.44860727,0.00016543,2]
[398481406,1765722646499,-154.03,0.00016549,2]
[398481408,1765722646508,-3337.9466334,0.00016566,2]
[398481410,1765722646517,-54734.58590471,0.00016598,2]
[398481412,1765722646529,-1116.98140397,0.00016598,2]
[398481414,1765722646540,-1235.93486426,0.00016598,2]
[398481417,1765722646560,-506.13216482,0.00016598,2]
[398481642,1765722755568,500.0,0.00015373,2]
[398481650,1765722790748,760000.0,0.00015375,2]
[398481655,1765722805011,1000.0,0.00015375,2]
[398481659,1765722820077,197.83,0.0001261,2]
[398481660,1765722820264,197.83,0.00013871,2]
[398481661,1765722820464,197.83,0.00015132,2]
[398481691,1765723013651,-500.0,0.00015425,3]
[398481692,1765723013678,-81.36210088,0.00015425,3]
[398481693,1765723015610,-418.63789912,0.00015425,3]
[398481694,1765723015634,-58.32615872,0.00015452,3]
[398481695,1765723020012,-174.15624375,0.00015452,3]
[398481696,1765723024596,-166.66,0.00015452,3]
[398481718,1765723156805,500.0,0.00015397,3]
[398481719,1765723163375,-100.85759753,0.00015452,3]
[398481720,1765723163397,-300.0,0.00015458,2]
[398481721,1765723163420,-36.56944967,0.00015463,2]
[398481722,1765723164535,-158.43055033,0.00015463,2]
[398481723,1765723164558,-65.20240247,0.00015474,2]
[398481724,1765723176645,-245.9663679,0.00015425,3]
[398481729,1765723206885,-254.0336321,0.00015425,3]
[398481730,1765723206913,-34.10665715,0.0001544,2]
[398481731,1765723250169,2447.0,0.000154,2]
[398481732,1765723267694,-160.89334285,0.0001544,2]
[398481733,1765723267720,-339.10665715,0.00015452,2]
[398481734,1765723270479,-214.58334285,0.00015452,2]
[398481735,1765723313507,3322.67858823,0.00022,30]
[398481736,1765723316896,300.0,0.00015397,3]
[398481737,1765723326660,-300.0,0.00015425,2]
[398481738,1765723328206,-616.6120197,0.00015425,2]
[398481739,1765723330392,-376.30744404,0.00015425,2]
[398481740,1765723333663,-215.95295482,0.00015425,2]
[398481741,1765723370996,500.0,0.00015389,2]
[398481742,1765723387231,-207.4392727,0.00015409,2]
[398481743,1765723388670,-183.55758337,0.00015409,2]
[398481744,1765723390696,-280.62231621,0.00015409,2]
[398481745,1765723393260,-170.04594715,0.00015409,2]
[398481746,1765723396243,-157.49246949,0.00015409,2]
[398481747,1765723399578,-166.66,0.00015409,2]
[398481748,1765723401424,-275.84753051,0.00015409,2]
[398481749,1765723404232,-329.35656801,0.00015409,2]
[398481750,1765723411723,-156.1088056,0.00015409,2]
[398481751,1765723415673,-384.64058669,0.00015409,2]